bitfinex/quotes_ETHUSD_20240718
["timestamp","ask_amount","ask_price","bid_price","bid_amount"]
[1721341134919,2.91214,3433.9,3433.5,2.4418]
[1721341136714,5.82436,3433.9,3433.5,2.4418]
[1721341136919,2.91222,3433.8,3433.3,2.91264]
[1721341137121,2.91222,3433.8,3433.2,2.3341]
[1721341137448,2.91244,3433.6,3433.2,2.3341]
[1721341137754,2.91201,3434.1,3433.2,2.3341]
[1721341138048,2.91201,3434.1,3433.5,2.91242]
[1721341138223,5.82405,3434.1,3433.5,2.91242]
[1721341138421,2.91208,3434.0,3433.3,5.82518]
[1721341138606,0.1478146,3434.2,3433.2,2.3341]
[1721341138607,2.91215,3433.9,3433.2,2.3341]
[1721341139011,2.91215,3433.9,3433.2,5.24675]
[1721341139243,2.91215,3433.9,3433.3,2.9126]
[1721341140547,3.05415,3433.9,3433.3,2.9126]
[1721341142246,3.05415,3433.9,3433.2,2.3341]
[1721341142247,2.91226,3433.8,3433.2,2.3341]
[1721341142468,3.05415,3433.9,3433.3,2.91262]
[1721341142753,2.91223,3433.8,3433.3,2.91262]
[1721341142918,5.82453,3433.8,3433.2,2.3341]
[1721341143417,2.91232,3433.7,3433.2,2.3341]
[1721341143858,3.05421,3433.9,3433.2,5.24682]
[1721341144017,2.91224,3433.8,3433.2,5.24682]
[1721341144455,2.91224,3433.8,3433.3,2.91263]
[1721341145655,2.91224,3433.8,3433.2,2.3341]
[1721341146258,2.91224,3433.8,3433.2,5.24678]
[1721341147037,1.04,3433.7,3433.2,5.24678]
[1721341147824,3.95231,3433.7,3433.2,5.24678]
[1721341148025,3.95231,3433.7,3433.2,2.3341]
[1721341148262,1.04,3433.3,3433.1,7.44]
[1721341148467,1.04,3433.3,3432.5,5.29388]
[1721341148468,2.91273,3433.2,3432.5,5.29388]
[1721341148621,1.04,3432.9,3432.3,10.35344]
[1721341148825,1.04,3432.9,3432.3,2.91344]
[1721341149021,3.95301,3432.9,3432.3,2.91344]
[1721341150346,2.91301,3432.9,3432.3,2.91344]
[1721341151225,2.91307,3432.8,3432.2,5.29415]
[1721341151428,2.91307,3432.8,3432.0,10.35367]
[1721341152152,3.204377,3432.8,3432.0,10.35367]
[1721341152359,2.91329,3432.6,3432.0,10.35367]
[1721341152564,3.204377,3432.8,3431.6,0.60073144]
[1721341152565,2.788307,3432.8,3431.6,0.60073144]
[1721341152743,2.91386,3431.9,3431.4,7.44]
[1721341152943,2.91386,3431.9,3431.0,10.35456]
[1721341153142,2.27,3432.2,3431.0,10.35456]
[1721341153143,2.91369,3432.1,3431.1,1.01337151]
[1721341153397,2.91393,3431.8,3431.1,2.91446]
[1721341155547,5.82757,3432.0,3431.2,2.91436]
[1721341155752,2.91375,3432.0,3431.3,2.91426]
[1721341156266,2.91384,3431.9,3431.3,2.91426]
[1721341156439,2.91371,3432.1,3431.5,2.91417]
[1721341156777,2.91371,3432.1,3431.0,7.44]
[1721341156778,2.91376,3432.0,3431.4,2.91425]
[1721341156940,2.91376,3432.0,3431.2,2.91436]
[1721341157141,2.91384,3431.9,3431.2,2.91436]
[1721341158583,2.91384,3431.9,3431.3,2.91434]
[1721341159457,2.91384,3431.9,3431.0,7.44]
[1721341159458,2.91409,3431.6,3431.0,7.44]
[1721341159657,0.809755,3431.9,3431.0,7.44]
[1721341159658,2.91425,3431.5,3431.0,7.44]
[1721341161984,2.91416,3431.6,3431.0,7.44]
[1721341162190,2.9141,3431.6,3431.0,10.35455]
[1721341162397,2.9141,3431.6,3431.0,2.91455]
[1721341162689,2.91392,3431.8,3431.0,2.91453]
[1721341162891,2.497,3432.4,3431.3,2.91428]
[1721341163404,5.82766,3432.0,3431.3,2.91428]
[1721341163546,2.91383,3432.0,3431.4,2.91423]
[1721341163742,2.91383,3432.0,3431.5,5.36795]
[1721341164604,2.9136,3432.2,3431.6,2.91406]
[1721341165101,2.9136,3432.2,3431.8,0.30605516]
[1721341165916,3.496302,3432.2,3431.8,0.30605516]
[1721341166063,2.91381,3432.0,3431.8,0.30605516]
[1721341166266,8.17716,3431.9,3431.8,0.30605516]
[1721341166674,5.26333,3431.9,3431.8,0.30605516]
[1721341167712,2.91376,3432.0,3431.8,0.30605516]
[1721341167883,2.91383,3431.9,3431.8,0.30605516]
[1721341171597,5.29582,3432.3,3431.8,0.30605516]
[1721341171777,3.40156,3432.2,3431.8,0.30605516]
[1721341173453,2.497,3432.4,3431.8,0.30605516]
[1721341173624,5.41047,3432.4,3431.8,3.21995516]
[1721341174119,2.91318,3432.7,3431.9,2.4141]
[1721341174278,2.91286,3433.1,3432.3,2.91345]
[1721341174611,2.91286,3433.1,3432.5,2.91327]
[1721341175937,2.91265,3433.3,3432.6,2.91323]
[1721341176078,3.0,3433.2,3432.6,2.91323]
[1721341176579,5.91273,3433.2,3432.6,2.91323]
[1721341177207,5.91273,3433.2,3432.6,2.91322]
[1721341177418,5.91273,3433.2,3432.5,5.17306]
[1721341177612,3.0,3433.2,3432.6,2.91323]
[1721341178800,5.91275,3433.2,3432.6,2.91323]
[1721341179001,3.0,3433.2,3432.7,2.91309]
[1721341179312,3.0,3433.3,3432.7,2.91309]
[1721341179529,3.0,3433.3,3432.8,2.91307]
[1721341179748,2.91248,3433.5,3433.0,2.91284]
[1721341182124,2.497,3433.8,3433.1,2.2572]
[1721341182336,3.05417,3433.9,3433.2,2.91265]
[1721341183412,3.05417,3433.9,3433.4,2.91254]
[1721341183609,4.21526946,3433.9,3433.4,2.91254]
[1721341184027,4.21526946,3433.9,3433.8,0.30605516]
[1721341184547,4.21526946,3433.9,3433.3,2.91263]
[1721341184842,3.05417,3433.9,3433.3,2.91263]
[1721341186153,0.142,3433.9,3433.4,2.91254]
[1721341186569,0.142,3433.9,3433.5,2.91241]
[1721341186713,0.142,3433.9,3433.8,8.73666]
[1721341186914,0.142,3433.9,3433.8,5.82444]
[1721341187221,0.142,3433.9,3433.8,8.68784]
[1721341187431,0.142,3433.9,3433.8,8.13784]
[1721341188752,0.142,3433.9,3433.8,5.22562]
[1721341189724,0.142,3433.9,3433.8,8.13784]
[1721341191166,0.042,3433.9,3433.8,8.13784]
[1721341193328,0.02062408,3435.3,3435.0,2.91113]
[1721341193530,0.02062408,3435.3,3435.0,2.91119]
[1721341193965,0.02062408,3435.3,3434.7,2.91143]
[1721341194271,0.02062408,3435.3,3435.2,0.30583512]
[1721341194429,0.02062408,3435.3,3435.1,2.91111]
[1721341194781,0.02062408,3435.3,3434.9,2.91124]
[1721341195124,0.02062408,3435.3,3434.5,9.9037]
[1721341195125,0.02062408,3435.3,3434.7,2.91144]
[1721341195359,0.02062408,3435.3,3434.9,2.91123]
[1721341195564,0.02062408,3435.3,3435.0,2.91119]
[1721341196072,0.02062408,3435.3,3434.7,2.91144]
[1721341196247,0.02062408,3435.3,3434.5,9.9037]
[1721341196583,2.9112,3435.1,3434.5,9.9037]
[1721341197180,0.02062408,3435.3,3434.7,2.497]
[1721341197388,0.02062408,3435.3,3435.2,2.91103]
[1721341198167,0.03241151,3436.2,3434.9,2.4553]
[1721341198374,0.03241151,3436.2,3436.1,2.4553]
[1721341198599,0.03241151,3436.2,3435.2,3.073]
[1721341198600,0.03241151,3436.2,3435.8,2.91052]
[1721341198799,0.03241151,3436.2,3435.7,2.91058]
[1721341199001,0.03241151,3436.2,3435.8,2.9105]
[1721341199374,0.03241151,3436.2,3435.9,2.96864396]
[1721341199724,0.03241151,3436.2,3436.0,2.91028]
[1721341200421,0.03241151,3436.2,3435.8,2.91052]
[1721341200422,0.03241151,3436.2,3436.1,2.91027]
[1721341200621,0.03241151,3436.2,3435.6,2.4553]
[1721341200905,0.03241151,3436.2,3435.5,10.35072]
[1721341201068,0.03241151,3436.2,3436.1,0.30571048]
[1721341201267,2.94260151,3436.2,3436.1,0.30571048]
[1721341201700,2.94260151,3436.2,3435.5,10.35077]
[1721341201906,0.03241151,3436.2,3435.6,2.91061]
[1721341202095,0.03241151,3436.2,3435.8,2.9105]
[1721341202403,0.03241151,3436.2,3435.6,2.91061]
[1721341202805,0.03241151,3436.2,3435.5,7.44]
[1721341203571,2.91045,3435.9,3435.5,7.44]
[1721341203973,0.03241151,3436.2,3435.3,2.91094]
[1721341204181,2.94260151,3436.2,3435.4,2.91082]
[1721341204412,2.94260151,3436.2,3435.5,2.91075]
[1721341204571,2.94260151,3436.2,3435.3,2.91094]
[1721341204572,0.03241151,3436.2,3435.3,2.91094]
[1721341204792,2.94260151,3436.2,3435.2,5.26762]
[1721341205002,2.94260151,3436.2,3435.7,2.91055]
[1721341205003,0.03241151,3436.2,3435.7,2.91055]
[1721341206893,0.03241151,3436.2,3435.8,2.9105]
[1721341207604,0.03241151,3436.2,3435.6,2.91069]
[1721341207798,0.03241151,3436.2,3435.4,2.91085]
[1721341207998,2.91028,3436.1,3435.4,2.91085]
[1721341208418,2.91028,3436.1,3435.2,5.26761]
[1721341208419,2.91028,3436.1,3435.5,2.91077]
[1721341208612,2.91028,3436.1,3435.3,2.91088]
[1721341208813,2.91036,3436.0,3435.3,2.91088]
[1721341209213,5.85285151,3436.2,3435.4,2.91081]
[1721341209618,2.94260151,3436.2,3435.5,2.91077]
[1721341209927,0.03241151,3436.2,3435.5,2.91077]
[1721341210129,2.91036,3436.0,3435.3,2.91088]
[1721341210931,2.91036,3436.0,3435.2,5.26761]
[1721341211133,2.91045,3435.9,3435.3,2.91094]
[1721341211337,2.94263151,3436.2,3435.4,2.91085]
[1721341211499,2.94263151,3436.2,3435.5,2.91075]
[1721341212239,2.94263151,3436.2,3435.6,2.91069]
[1721341212534,0.03241151,3436.2,3435.7,2.91056]
[1721341212732,0.03241151,3436.2,3435.8,2.91051]
[1721341212930,0.03241151,3436.2,3435.6,3.05669]
[1721341212931,0.03241151,3436.2,3435.6,3.05663]
[1721341213131,2.91032,3436.1,3435.6,0.146]
[1721341213500,2.91045,3435.9,3435.6,0.146]
[1721341214109,0.03241151,3436.2,3435.6,0.146]
[1721341214308,5.82122,3435.7,3435.6,0.146]
[1721341214505,6.64005323,3435.7,3435.6,0.146]
[1721341217638,2.91061,3435.7,3435.6,0.146]
[1721341218437,2.91042,3436.0,3435.6,0.146]
[1721341218736,0.03241151,3436.2,3435.6,0.146]
[1721341218737,2.94261151,3436.2,3435.6,0.146]
[1721341218917,2.9103,3436.1,3435.6,0.146]
[1721341219247,2.94261151,3436.2,3435.6,0.146]
[1721341219537,2.94261151,3436.2,3435.6,3.05665]
[1721341219742,0.03241151,3436.2,3435.8,2.91052]
[1721341219927,0.03241151,3436.2,3435.9,0.30616407]
[1721341220908,0.0728448,3436.3,3435.9,0.30616407]
[1721341221807,0.0728448,3436.3,3435.9,3.21658407]
[1721341222111,0.0728448,3436.3,3436.1,2.91023]
[1721341222440,0.0728448,3436.3,3435.9,0.30616407]
[1721341222599,2.9829748,3436.3,3435.9,0.30616407]
[1721341222802,2.91036,3436.0,3435.9,0.30616407]
[1721341223446,0.0728448,3436.3,3436.2,2.3137]
[1721341223648,0.0728448,3436.3,3436.2,8.13408]
[1721341224247,0.0728448,3436.3,3436.2,11.51324407]
[1721341224465,0.201075,3437.6,3436.2,11.51324407]
[1721341224466,0.201075,3437.6,3437.0,2.90944]
[1721341224745,7.5,3438.9,3437.0,2.90944]
[1721341224746,2.90799,3438.8,3437.6,2.3137]
[1721341224960,0.34623795,3439.4,3438.5,2.90816]
[1721341225144,0.34623795,3439.4,3438.9,2.90782]
[1721341225351,0.34623795,3439.4,3437.7,4.61514397]
[1721341225533,0.34623795,3439.4,3438.4,2.90828]
[1721341226140,2.90774,3439.1,3438.2,2.90849]
[1721341226328,3.25373795,3439.4,3438.3,2.90839]
[1721341226545,2.90757,3439.3,3438.3,2.90839]
[1721341226743,0.34623795,3439.4,3438.5,2.90822]
[1721341227456,0.34623795,3439.4,3437.8,6.623]
[1721341227457,0.34623795,3439.4,3439.3,0.30616407]
[1721341227631,3.25371795,3439.4,3439.3,0.30616407]
[1721341228031,6.16119795,3439.4,3439.3,0.30616407]
[1721341228232,6.16119795,3439.4,3437.4,2.90912]
[1721341228233,2.90791,3438.9,3437.4,2.90912]
[1721341228465,2.90799,3438.8,3437.8,2.90882]
[1721341228758,2.90799,3438.8,3436.9,7.94696691]
[1721341228759,2.497,3438.6,3437.2,2.90934]
[1721341228960,2.90883,3437.8,3436.7,2.3137]
[1721341229161,2.90893,3437.7,3436.7,5.22346]
[1721341229458,2.9087,3438.0,3436.9,2.90958]
[1721341229672,2.9085,3438.2,3436.7,5.44488122]
[1721341229827,2.497,3438.6,3437.0,2.90951]
[1721341230020,2.497,3438.6,3437.1,2.90942]
[1721341230021,2.90848,3438.3,3437.1,2.90942]
[1721341230364,2.9085,3438.2,3437.1,2.90942]
[1721341230681,2.90867,3438.0,3436.9,2.90951]
[1721341231117,2.90867,3438.0,3436.7,5.22345]
[1721341231321,2.909,3437.7,3436.8,3.0]
[1721341231631,2.90875,3437.9,3436.8,3.0]
[1721341232027,0.05997906,3437.8,3436.8,3.0]
[1721341232227,2.90906,3437.6,3436.8,3.0]
[1721341232457,0.05990734,3437.5,3436.8,5.90967]
[1721341233319,0.05990734,3437.5,3436.8,3.0]
[1721341233523,0.05985259,3437.4,3436.7,3.0]
[1721341233855,2.36195805,3437.6,3436.7,5.90973]
[1721341234064,2.90886,3437.8,3436.7,5.90973]
[1721341234361,0.05798657,3437.7,3436.9,2.90959]
[1721341234929,0.05798657,3437.7,3436.7,5.90973]
[1721341234930,2.90901,3437.6,3436.7,5.90973]
[1721341235262,2.90875,3437.9,3436.4,2.90994]
[1721341235263,2.497,3437.4,3436.4,2.90994]
[1721341235557,2.497,3437.4,3436.3,7.44]
[1721341235558,2.90975,3436.8,3436.3,7.44]
[1721341235763,2.90977,3436.7,3436.0,2.91032]
[1721341235961,2.90986,3436.6,3435.9,7.44]
[1721341236138,2.96742796,3436.6,3435.9,7.44]
[1721341236346,2.90995,3436.5,3435.9,7.44]
[1721341236687,0.0574438,3436.4,3435.9,10.35041]
[1721341237279,2.9098,3436.7,3435.9,10.35041]
[1721341237437,0.05746676,3436.3,3435.9,10.35041]
[1721341237786,2.90935,3437.2,3435.9,7.44]
[1721341238060,2.90935,3437.2,3436.1,2.91027]
[1721341238226,0.05767938,3437.1,3436.3,2.91003]
[1721341238426,0.05767938,3437.1,3436.6,0.30610171]
[1721341239429,0.05767938,3437.1,3436.6,3.21594171]
[1721341239869,5.90917,3437.4,3436.6,3.21594171]
[1721341239870,2.90926,3437.3,3436.6,3.21594171]
[1721341240070,0.05766079,3437.2,3436.6,3.21594171]
[1721341240371,0.05766079,3437.2,3436.7,2.90975]
[1721341240879,0.05771164,3437.1,3436.7,2.90975]
[1721341241178,2.90891,3437.8,3436.6,0.30610171]
[1721341241346,2.96718451,3437.0,3436.6,0.30610171]
[1721341241550,2.90952,3437.0,3436.6,0.30610171]
[1721341241786,2.96732349,3436.9,3436.6,0.30610171]
[1721341241948,2.90976,3436.7,3436.6,0.30610171]
[1721341242284,2.96765692,3436.7,3436.6,0.30610171]
[1721341242657,0.05789692,3436.7,3436.6,0.30610171]
[1721341242850,2.90961,3436.9,3436.6,0.30610171]
[1721341243050,0.05792881,3436.8,3436.6,0.30610171]
[1721341243387,2.90936,3437.2,3436.6,0.30610171]
[1721341243595,0.05786644,3436.7,3436.6,0.30610171]
[1721341243741,2.90932,3437.3,3436.6,0.30610171]
[1721341244092,2.90943,3437.1,3436.5,2.90993]
[1721341244450,2.96748726,3437.0,3436.3,2.91005]
[1721341244653,2.9096,3436.9,3436.3,2.91005]
[1721341244852,0.05788829,3436.8,3436.3,2.91005]
[1721341245050,0.05788829,3436.8,3436.4,2.91002]
[1721341245373,3.0,3437.8,3436.4,2.91002]
[1721341245374,2.9094,3437.2,3436.6,2.90983]
[1721341245574,0.0578693,3436.7,3436.6,2.90983]
[1721341245740,2.9094,3437.2,3436.6,2.90983]
[1721341245944,2.90943,3437.1,3436.6,2.90983]
[1721341246165,2.96743725,3437.1,3436.6,2.90983]
[1721341246954,2.96743725,3437.1,3436.4,2.90995]
[1721341247257,2.90952,3437.0,3436.4,2.90995]
[1721341247682,0.05601208,3436.9,3436.4,2.90995]
[1721341247859,0.05601208,3436.9,3436.5,2.90992]
[1721341248175,2.90939,3437.2,3436.5,2.90992]
[1721341248644,0.05552676,3437.1,3436.5,2.90992]
[1721341248844,0.05552676,3437.1,3436.6,2.90984]
[1721341249074,0.05552676,3437.1,3435.9,10.3504]
[1721341249258,2.90859,3438.1,3437.0,5.81902]
[1721341249474,0.05091985,3438.0,3437.3,0.30646168]
[1721341249846,2.95999251,3437.9,3437.3,3.21571168]
[1721341250247,0.05124251,3437.9,3437.4,2.90917]
[1721341250458,2.90864,3438.1,3437.5,2.90907]
[1721341250761,0.05120371,3438.0,3437.5,2.90907]
[1721341250955,0.05120371,3438.0,3437.7,2.90888]
[1721341251283,0.05116662,3437.9,3437.7,2.96705215]
[1721341251490,2.90842,3438.3,3437.7,2.96705215]
[1721341251849,2.90826,3438.5,3437.7,2.96705215]
[1721341251850,0.04961053,3438.2,3437.7,2.96705215]
[1721341252050,2.90833,3438.4,3437.7,2.96705215]
[1721341252243,0.04965765,3438.3,3437.7,2.96705215]
[1721341252446,2.95812765,3438.3,3437.7,2.96705215]
[1721341252649,2.95806765,3438.3,3437.5,2.90908]
[1721341252943,2.90863,3438.1,3437.3,3.21569168]
[1721341253447,0.04981989,3438.0,3437.3,3.21569168]
[1721341254089,0.04981989,3438.0,3437.4,2.90916]
[1721341254461,0.04981989,3438.0,3437.5,2.90907]
[1721341254788,0.04981989,3438.0,3437.4,2.90916]
[1721341255604,2.95849989,3438.0,3437.4,2.90916]
[1721341256624,2.95849989,3438.0,3437.3,0.30646168]
[1721341256625,2.90905,3437.6,3437.3,0.30646168]
[1721341256974,2.90917,3437.4,3437.3,0.30646168]
[1721341257416,2.90905,3437.6,3437.3,0.30646168]
[1721341257573,2.90909,3437.5,3437.3,0.30646168]
[1721341257778,2.90897,3437.7,3437.3,0.30646168]
[1721341257975,2.4654,3437.9,3437.3,3.21569168]
[1721341257976,2.90876,3437.9,3437.3,3.21569168]
[1721341258212,0.04970855,3437.6,3437.3,0.30646168]
[1721341258396,2.90884,3437.8,3437.3,0.30646168]
[1721341258734,0.04962808,3437.5,3437.3,0.30646168]
[1721341259016,2.9089,3437.8,3437.3,0.30646168]
[1721341259512,0.04970466,3437.7,3437.3,0.30646168]
[1721341259696,2.90863,3438.1,3437.4,2.90911]
[1721341260027,0.04978769,3438.0,3437.4,2.90911]
[1721341260529,2.90886,3437.8,3437.3,0.30646168]
[1721341260678,2.90897,3437.7,3437.3,0.30646168]
[1721341260880,0.04964979,3437.6,3437.3,0.30646168]
[1721341261580,2.90889,3437.8,3437.3,0.30646168]
[1721341262118,0.04969692,3437.7,3437.3,0.30646168]
[1721341262279,2.90889,3437.8,3437.3,0.30646168]
[1721341262492,0.04969692,3437.7,3437.3,0.30646168]
[1721341262688,2.90892,3437.7,3437.3,0.30646168]
[1721341262924,2.9091,3437.5,3437.3,0.30646168]
[1721341263126,5.81827,3437.5,3437.3,0.30646168]
[1721341263336,0.04991763,3437.4,3437.3,0.30646168]
[1721341266092,2.90909,3437.5,3437.3,0.30646168]
[1721341266630,0.04991766,3437.4,3437.3,0.30646168]
[1721341267812,3.199852,3437.7,3437.3,0.30646168]
[1721341268218,2.90909,3437.5,3437.3,0.30646168]
[1721341268662,0.04978665,3437.4,3437.3,0.30646168]
[1721341269229,2.95895665,3437.4,3437.3,0.30646168]
[1721341270332,6.48401152,3437.4,3437.3,0.30646168]
[1721341270717,6.48401152,3437.4,3436.1,12.33]
[1721341270718,5.24682,3437.3,3435.4,4.16280732]
[1721341270927,5.24682,3437.3,3435.6,0.146]
[1721341270928,2.91061,3435.7,3435.6,0.146]
[1721341271104,5.40022,3436.2,3435.6,0.146]
[1721341271105,2.91038,3436.0,3435.6,0.146]
[1721341271307,0.04919968,3435.7,3435.6,0.146]
[1721341271550,2.91038,3436.0,3435.6,0.146]
[1721341271700,0.04927403,3435.7,3435.6,0.146]
[1721341272040,2.91038,3436.0,3435.6,0.146]
[1721341272238,0.04929932,3435.7,3435.6,0.146]
[1721341272460,2.91038,3436.0,3435.6,0.146]
[1721341272742,2.91055,3435.8,3435.6,0.146]
[1721341272904,2.91038,3436.0,3435.6,0.146]
[1721341273110,0.04945423,3435.9,3435.6,0.146]
[1721341273310,2.95990423,3435.9,3435.6,0.146]
[1721341274402,2.91053,3435.8,3435.6,0.146]
[1721341274599,2.95982547,3435.8,3435.6,0.146]
[1721341275023,2.91061,3435.7,3435.6,0.146]
[1721341275425,2.95975306,3435.7,3435.6,0.146]
[1721341275637,0.04914306,3435.7,3435.6,0.146]
[1721341276033,5.82097,3435.9,3435.6,0.146]
[1721341276239,0.04914306,3435.7,3435.6,0.146]
[1721341276555,0.04909248,3435.7,3435.6,0.146]
[1721341276756,2.91061,3435.7,3435.6,0.146]
[1721341276921,2.9596266,3435.7,3435.6,0.146]
[1721341277107,6.45725326,3435.7,3435.6,0.146]
[1721341280121,9.36786326,3435.7,3435.6,0.146]
[1721341281275,6.45725326,3435.7,3435.6,0.146]
[1721341282328,2.9596266,3435.7,3435.6,0.146]
[1721341285450,0.0490166,3435.7,3435.6,0.146]
[1721341285818,2.91055,3435.8,3435.6,0.146]
[1721341286018,0.04752921,3435.7,3435.6,0.146]
[1721341286464,2.91055,3435.8,3435.6,0.146]
[1721341286659,2.95813826,3435.7,3435.6,0.146]
[1721341286859,6.45561709,3435.7,3435.6,0.146]
[1721341288538,3.54500709,3435.7,3435.6,0.146]
[1721341288857,0.04752826,3435.7,3435.6,0.146]
[1721341289054,0.04752826,3435.7,3435.6,3.60669]
[1721341289260,2.90999,3436.5,3435.8,2.91049]
[1721341289641,0.04401988,3436.4,3435.8,2.91049]
[1721341290469,2.91011,3436.3,3435.7,2.91061]
[1721341290986,0.04390481,3436.2,3435.7,2.91061]
[1721341291282,0.04390481,3436.2,3435.6,0.146]
[1721341291578,2.9098,3436.7,3435.6,0.146]
[1721341292086,2.91033,3436.1,3435.6,0.146]
[1721341292457,2.9105,3435.9,3435.6,0.146]
[1721341292663,2.95426067,3436.0,3435.6,0.146]
[1721341292860,0.0438362,3435.8,3435.6,0.146]
[1721341293086,2.91036,3436.0,3435.6,0.146]
[1721341293390,2.91061,3435.7,3435.6,0.146]
[1721341293752,0.04378168,3435.7,3435.6,0.146]
[1721341293962,2.91033,3436.1,3435.6,0.146]
[1721341294252,0.04343416,3435.7,3435.6,0.146]
[1721341294548,2.91016,3436.3,3435.6,3.05668]
[1721341294756,2.91024,3436.2,3435.6,3.05668]
[1721341295394,2.91028,3436.1,3435.6,0.146]
[1721341295562,2.91024,3436.2,3435.6,0.146]
[1721341295755,3.201264,3436.2,3435.6,0.146]
[1721341295957,2.91041,3436.0,3435.6,0.146]
[1721341296182,3.201264,3436.2,3435.6,0.146]
[1721341296390,2.91024,3436.2,3435.6,0.146]
[1721341296560,2.91028,3436.1,3435.6,0.146]
[1721341296979,2.9101,3436.3,3435.6,3.05669]
[1721341297306,2.91019,3436.2,3435.7,2.91061]
[1721341297601,2.91019,3436.2,3435.8,2.2738]
[1721341297961,2.90977,3436.7,3436.1,2.91026]
[1721341298158,2.90995,3436.5,3435.9,2.91039]
[1721341298464,2.91003,3436.4,3435.9,2.91039]
[1721341298661,2.91003,3436.4,3435.8,2.2738]
[1721341298916,2.91024,3436.2,3435.8,2.2738]
[1721341299139,2.91024,3436.2,3435.7,7.44]
[1721341299447,2.91041,3436.0,3435.7,7.44]
[1721341299596,2.91041,3436.0,3435.6,0.146]
[1721341299996,2.91009,3436.4,3435.7,2.91055]
[1721341300209,2.90977,3436.7,3436.1,2.9102]
[1721341301087,2.90977,3436.7,3435.7,7.44]
[1721341301088,2.90998,3436.5,3435.9,2.91037]
[1721341301292,5.81999,3436.5,3435.9,2.91037]
[1721341301597,2.90998,3436.5,3435.9,2.91037]
[1721341301916,0.0434032,3436.4,3436.1,2.91027]
[1721341302085,2.9099,3436.6,3436.0,2.91035]
[1721341302289,2.90974,3436.8,3436.1,2.91025]
[1721341302630,2.90976,3436.7,3436.1,2.91025]
[1721341302823,2.95360326,3436.7,3436.1,2.91025]
[1721341303438,2.95360326,3436.7,3436.1,2.91021]
[1721341304163,2.95360326,3436.7,3436.1,5.82042]
[1721341304312,2.95360326,3436.7,3436.1,2.91021]
[1721341304716,0.04384326,3436.7,3436.3,2.91005]
[1721341305025,2.90953,3437.0,3436.4,2.90999]
[1721341305274,0.04340491,3436.6,3436.4,2.90999]
[1721341305417,6.23229,3437.3,3436.5,2.90993]
[1721341305850,6.23229,3437.3,3436.3,2.91005]
[1721341305851,2.90947,3437.1,3436.3,2.91005]
[1721341306223,0.04370652,3437.0,3436.3,2.91005]
[1721341306419,2.90961,3436.9,3436.3,2.91003]
[1721341306658,0.04362603,3436.9,3436.4,2.91001]
[1721341307952,2.9094,3437.2,3436.6,2.9098]
[1721341308157,5.29704,3437.8,3436.2,2.4038]
[1721341308158,2.90896,3437.7,3436.8,2.90967]
[1721341308865,2.90905,3437.6,3436.9,2.90952]
[1721341309174,2.95292855,3437.6,3436.9,2.90952]
[1721341309518,2.90911,3437.5,3436.9,2.90952]
[1721341309716,2.90911,3437.5,3436.8,2.90967]
[1721341309717,0.04237675,3437.4,3437.0,2.90947]
[1721341309916,0.33208973,3438.6,3437.1,2.2528]
[1721341310163,0.33208973,3438.6,3436.5,0.05818354]
[1721341310164,2.49,3439.1,3437.4,2.2528]
[1721341310374,0.04069318,3438.5,3438.0,2.90866]
[1721341310664,2.90817,3438.6,3437.9,2.90872]
[1721341310870,2.90802,3438.8,3438.0,2.90865]
[1721341311168,3.489666,3438.7,3438.0,2.90865]
[1721341311365,3.489666,3438.7,3438.1,2.90858]
[1721341311596,3.489666,3438.7,3437.6,7.44]
[1721341311597,3.489666,3438.7,3437.9,2.90875]
[1721341311809,2.90816,3438.6,3437.9,2.90875]
[1721341312160,2.90816,3438.6,3438.0,2.90865]
[1721341312659,0.03585424,3438.5,3438.1,2.90856]
[1721341312909,0.03585424,3438.5,3438.2,2.90848]
[1721341313393,0.03585424,3438.5,3438.4,2.90832]
[1721341313600,2.90776,3439.1,3438.4,2.90832]
[1721341313803,2.90757,3439.3,3438.4,5.81664]
[1721341313804,0.03590259,3438.5,3438.4,5.81664]
[1721341313985,2.90757,3439.3,3438.6,2.90814]
[1721341314193,2.90757,3439.3,3438.7,2.90807]
[1721341314765,0.34623795,3439.4,3438.9,2.9079]
[1721341315710,0.34623795,3439.4,3439.0,2.90774]
[1721341316205,0.03682966,3439.3,3439.0,2.90774]
[1721341316711,2.90765,3439.2,3438.3,9.9101]
[1721341316872,2.90779,3439.1,3438.3,12.8185]
[1721341317074,2.90782,3439.0,3438.3,12.8185]
[1721341317291,2.90798,3438.9,3438.3,7.44]
[1721341317603,2.90799,3438.8,3438.3,7.44]
[1721341317763,3.52973171,3438.8,3438.3,7.44]
[1721341318401,2.90815,3438.7,3438.3,7.44]
[1721341318607,2.94439589,3438.7,3438.3,7.44]
[1721341318896,2.90832,3438.5,3438.3,7.44]
[1721341319112,2.90834,3438.4,3437.9,2.2513]
[1721341319284,3.52965964,3438.4,3437.9,2.2513]
[1721341319489,0.62131964,3438.4,3437.9,2.2513]
[1721341319713,0.62131964,3438.4,3437.9,5.16004]
[1721341319911,0.62131964,3438.4,3437.9,2.90874]
[1721341320073,0.03604205,3438.4,3438.2,2.90843]
[1721341320270,0.03604205,3438.4,3438.0,2.90861]
[1721341320475,2.90816,3438.6,3438.1,2.90857]
[1721341320675,2.90816,3438.6,3437.9,2.90869]
[1721341320973,2.90843,3438.3,3437.8,7.44]
[1721341321174,2.90863,3438.1,3437.8,7.44]
[1721341321569,0.290843,3438.2,3437.8,7.44]
[1721341321770,2.90865,3438.1,3437.8,7.44]
[1721341322803,0.290843,3438.2,3437.8,7.44]
[1721341323010,2.90845,3438.3,3437.6,2.90899]
[1721341323382,0.03593686,3438.2,3437.6,2.90899]
[1721341323582,2.90845,3438.3,3437.6,2.90899]
[1721341323910,0.03588975,3438.1,3437.7,2.90891]